fUST/lending_fUST_20250624
["ID","MTS","AMOUNT","RATE_DAILY","PERIOD"]
[367341505,1750756243246,-460.0,0.0002,2]
[367341507,1750756243256,-460.0,0.0002,2]
[367341509,1750756243265,-7219.34,0.0002,2]
[367341511,1750756243274,-460.0,0.0002,2]
[367341513,1750756243283,-460.0,0.0002,2]
[367341515,1750756243291,-460.0,0.0002,2]
[367341517,1750756243301,-460.0,0.0002,2]
[367341519,1750756243310,-1066.49,0.0002,2]
[367341521,1750756243320,-460.0,0.0002,2]
[367341523,1750756243329,-610.94,0.0002,2]
[367341525,1750756243338,-565.53,0.0002,2]
[367341527,1750756243347,-800.37,0.0002,2]
[367341529,1750756243357,-460.0,0.0002,2]
[367341531,1750756243366,-460.0,0.0002,2]
[367341533,1750756243375,-460.0,0.0002,2]
[367341535,1750756243384,-460.0,0.0002,2]
[367341537,1750756243393,-460.0,0.0002,2]
[367341539,1750756243405,-460.0,0.0002,2]
[367341542,1750756243414,-460.0,0.0002,2]
[367341545,1750756243424,-460.0,0.0002,2]
[367341547,1750756243433,-460.0,0.0002,2]
[367341550,1750756243443,-1317.61,0.0002,2]
[367341553,1750756243453,-460.0,0.0002,2]
[367341555,1750756243462,-460.0,0.0002,2]
[367341557,1750756243472,-460.0,0.0002,2]
[367341559,1750756243481,-460.0,0.0002,2]
[367341561,1750756243490,-901.35,0.0002,2]
[367341563,1750756243499,-460.0,0.0002,2]
[367341565,1750756243509,-1046.58,0.0002,2]
[367341567,1750756243518,-746.79,0.0002,2]
[367341569,1750756243527,-900.7,0.0002,2]
[367341571,1750756243537,-460.0,0.0002,2]
[367341573,1750756243546,-460.0,0.0002,2]
[367341574,1750756243556,-1330.85,0.0002,2]
[367341576,1750756243565,-1466.22,0.0002,2]
[367341579,1750756243575,-460.0,0.0002,2]
[367341581,1750756243585,-460.0,0.0002,2]
[367341583,1750756243594,-460.0,0.0002,2]
[367341584,1750756243603,-460.0,0.0002,2]
[367341586,1750756243612,-460.0,0.0002,2]
[367341588,1750756243621,-168.0,0.00020057,2]
[367341590,1750756243631,-633.99653126,0.00020066,2]
[367341592,1750756243640,-500.0,0.00020164,2]
[367341594,1750756243649,-486.996728,0.00020187,2]
[367341596,1750756243658,-300.0,0.00020251,2]
[367341598,1750756243668,-207.4,0.00020251,2]
[367341600,1750756243677,-233.6115,0.00020251,2]
[367341602,1750756243686,-1688.0,0.00020251,2]
[367341604,1750756243695,-5000.0,0.00020251,2]
[367341606,1750756243704,-16548.99886344,0.00020251,2]
[367341608,1750756243713,-460.0,0.00020273,2]
[367341610,1750756243723,-233.37260427,0.00020273,2]
[367341612,1750756243732,-231.0273426,0.00020273,2]
[367341614,1750756243742,-460.0,0.00020273,2]
[367341616,1750756243751,-460.0,0.00020273,2]
[367341618,1750756243761,-460.0,0.00020273,2]
[367341620,1750756243770,-460.0,0.00020273,2]
[367341622,1750756243779,-460.0,0.00020273,2]
[367341624,1750756243788,-460.0,0.00020273,2]
[367341626,1750756243798,-460.0,0.00020273,2]
[367341628,1750756243807,-460.0,0.00020273,2]
[367341630,1750756243816,-460.0,0.00020273,2]
[367341632,1750756243826,-619.95,0.00020273,2]
[367341634,1750756243835,-460.0,0.00020273,2]
[367341636,1750756243845,-516.35919209,0.00020273,2]
[367341638,1750756243854,-460.0,0.00020273,2]
[367341640,1750756243864,-409.39610038,0.00020273,2]
[367341642,1750756243873,-460.0,0.00020273,2]
[367341644,1750756243883,-460.0,0.00020273,2]
[367341646,1750756243894,-198.72,0.00020273,2]
[367341648,1750756243903,-3232.76,0.00020273,2]
[367341650,1750756243912,-460.0,0.00020273,2]
[367341652,1750756243921,-460.0,0.00020273,2]
[367341654,1750756243930,-460.0,0.00020273,2]
[367341655,1750756243939,-1003.9,0.00020273,2]
[367341657,1750756243948,-162.77140578,0.00020273,2]
[367341659,1750756243957,-974.18,0.00020273,2]
[367341661,1750756243967,-2376.79,0.00020273,2]
[367341663,1750756243976,-2214.61,0.00020273,2]
[367341665,1750756243985,-460.0,0.00020273,2]
[367341667,1750756243994,-758.26,0.00020273,2]
[367341669,1750756244004,-460.0,0.00020273,2]
[367341671,1750756244013,-460.0,0.00020273,2]
[367341673,1750756244022,-603.45,0.00020273,2]
[367341675,1750756244031,-460.0,0.00020273,2]
[367341677,1750756244040,-496.93,0.00020273,2]
[367341679,1750756244049,-460.0,0.00020273,2]
[367341681,1750756244058,-906.27,0.00020273,2]
[367341683,1750756244068,-460.0,0.00020273,2]
[367341685,1750756244077,-460.0,0.00020273,2]
[367341687,1750756244086,-765.91,0.00020273,2]
[367341689,1750756244096,-1619.14,0.00020273,2]
[367341691,1750756244105,-460.0,0.00020273,2]
[367341693,1750756244115,-460.0,0.00020273,2]
[367341695,1750756244124,-460.0,0.00020273,2]
[367341697,1750756244134,-460.0,0.00020273,2]
[367341699,1750756244144,-460.0,0.00020273,2]
[367341701,1750756244154,-460.0,0.00020273,2]
[367341703,1750756244163,-460.0,0.00020273,2]
[367341705,1750756244172,-7219.34,0.00020273,2]
[367341707,1750756244180,-460.0,0.00020273,2]
[367341709,1750756244189,-460.0,0.00020273,2]
[367341711,1750756244198,-460.0,0.00020273,2]
[367341713,1750756244207,-460.0,0.00020273,2]
[367341715,1750756244216,-1066.49,0.00020273,2]
[367341717,1750756244226,-460.0,0.00020273,2]
[367341719,1750756244235,-610.94,0.00020273,2]
[367341721,1750756244244,-565.53,0.00020273,2]
[367341723,1750756244253,-800.37,0.00020273,2]
[367341725,1750756244262,-460.0,0.00020273,2]
[367341727,1750756244271,-460.0,0.00020273,2]
[367341729,1750756244281,-460.0,0.00020273,2]
[367341731,1750756244290,-460.0,0.00020273,2]
[367341733,1750756244298,-460.0,0.00020273,2]
[367341734,1750756244308,-460.0,0.00020273,2]
[367341736,1750756244317,-186.84370843,0.00020273,2]
[367341738,1750756244327,-460.0,0.00020273,2]
[367341741,1750756244337,-460.0,0.00020273,2]
[367341742,1750756244346,-1317.61,0.00020273,2]
[367341745,1750756244355,-460.0,0.00020273,2]
[367341747,1750756244366,-460.0,0.00020273,2]
[367341748,1750756244375,-460.0,0.00020273,2]
[367341750,1750756244384,-460.0,0.00020273,2]
[367341752,1750756244394,-901.35,0.00020273,2]
[367341754,1750756244403,-460.0,0.00020273,2]
[367341756,1750756244412,-1046.58,0.00020273,2]
[367341758,1750756244421,-746.79,0.00020273,2]
[367341760,1750756244431,-900.7,0.00020273,2]
[367341762,1750756244441,-460.0,0.00020273,2]
[367341764,1750756244450,-460.0,0.00020273,2]
[367341766,1750756244459,-1330.85,0.00020273,2]
[367341768,1750756244469,-1466.22,0.00020273,2]
[367341770,1750756244479,-460.0,0.00020273,2]
[367341772,1750756244488,-460.0,0.00020273,2]
[367341774,1750756244497,-460.0,0.00020273,2]
[367341776,1750756244506,-584.54028224,0.00020273,2]
[367341778,1750756244516,-460.0,0.00020273,2]
[367341780,1750756244525,-463.87965979,0.00020306,2]
[367341782,1750756244534,-1000.0,0.00020307,2]
[367341784,1750756244543,-168.0,0.00020432,2]
[367341786,1750756244552,-172923.65932764,0.00020434,2]
[367341949,1750756246164,-175.20351775,0.00019178,2]
[367341952,1750756246174,-229.88661072,0.00019178,2]
[367341954,1750756246183,-460.0,0.00019178,2]
[367341956,1750756246193,-460.0,0.00019178,2]
[367341958,1750756246202,-460.0,0.00019178,2]
[367341960,1750756246214,-460.0,0.00019452,2]
[367341962,1750756246223,-460.0,0.00019452,2]
[367341964,1750756246233,-460.0,0.00019726,2]
[367341966,1750756246243,-460.0,0.00019726,2]
[367341968,1750756246253,-526.83,0.0002,2]
[367341970,1750756246262,-460.0,0.0002,2]
[367341972,1750756246272,-460.0,0.0002,2]
[367341974,1750756246282,-526.83,0.00020273,2]
[367341976,1750756246292,-460.0,0.00020273,2]
[367341978,1750756246302,-79467.12812367,0.00020434,2]
[367341980,1750756246311,-1003.48369518,0.00020462,2]
[367341982,1750756246321,-500.81876652,0.00020473,2]
[367341984,1750756246331,-451.63309187,0.00020473,2]
[367341986,1750756246340,-500.99452249,0.00020473,2]
[367341988,1750756246350,-500.0,0.00020473,2]
[367341990,1750756246359,-174.69466745,0.00020473,2]
[367341992,1750756246369,-500.0,0.00020473,2]
[367341994,1750756246379,-500.0,0.00020473,2]
[367341996,1750756246389,-617.83311831,0.00020473,2]
[367341998,1750756246399,-500.0,0.00020473,2]
[367342000,1750756246409,-500.0,0.00020473,2]
[367342002,1750756246418,-500.0,0.00020473,2]
[367342004,1750756246427,-388.00089879,0.00020473,2]
[367342006,1750756246436,-500.0,0.00020473,2]
[367342009,1750756246446,-2160.0,0.00020497,2]
[367342011,1750756246456,-654.0,0.00020497,2]
[367342013,1750756246466,-406.0,0.00020497,2]
[367342015,1750756246476,-1000.0,0.00020521,2]
[367342017,1750756246485,-1000.0,0.00020521,2]
[367342019,1750756246495,-614.18597854,0.00020521,2]
[367342021,1750756246504,-1000.0,0.00020521,2]
[367342023,1750756246514,-168.0,0.00020537,2]
[367342025,1750756246523,-4748.76,0.00020538,3]
[367342027,1750756246533,-2374.38,0.00020538,3]
[367342029,1750756246543,-1187.2,0.00020538,3]
[367342031,1750756246552,-593.6,0.00020538,3]
[367342033,1750756246562,-460.0,0.00020547,2]
[367342035,1750756246572,-460.0,0.00020547,2]
[367342037,1750756246582,-460.0,0.00020547,2]
[367342039,1750756246591,-460.0,0.00020547,2]
[367342041,1750756246600,-460.0,0.00020547,2]
[367342043,1750756246610,-460.0,0.00020547,2]
[367342045,1750756246620,-460.0,0.00020547,2]
[367342047,1750756246629,-460.0,0.00020547,2]
[367342049,1750756246639,-460.0,0.00020547,2]
[367342051,1750756246650,-460.0,0.00020547,2]
[367342054,1750756246660,-500.0,0.00020547,14]
[367342056,1750756246670,-619.95,0.00020547,2]
[367342058,1750756246679,-460.0,0.00020547,2]
[367342060,1750756246688,-460.0,0.00020547,2]
[367342062,1750756246698,-460.0,0.00020547,2]
[367342064,1750756246707,-460.0,0.00020547,2]
[367342066,1750756246717,-460.0,0.00020547,2]
[367342067,1750756246726,-460.0,0.00020547,2]
[367342069,1750756246736,-1003.9,0.00020547,2]
[367342072,1750756246745,-2376.79,0.00020547,2]
[367342074,1750756246755,-2214.61,0.00020547,2]
[367342076,1750756246765,-460.0,0.00020547,2]
[367342078,1750756246774,-758.26,0.00020547,2]
[367342080,1750756246784,-460.0,0.00020547,2]
[367342082,1750756246794,-460.0,0.00020547,2]
[367342084,1750756246804,-603.45,0.00020547,2]
[367342086,1750756246813,-460.0,0.00020547,2]
[367342088,1750756246823,-496.93,0.00020547,2]
[367342090,1750756246832,-460.0,0.00020547,2]
[367342092,1750756246841,-906.27,0.00020547,2]
[367342094,1750756246850,-460.0,0.00020547,2]
[367342096,1750756246860,-460.0,0.00020547,2]
[367342098,1750756246871,-765.91,0.00020547,2]
[367342100,1750756246880,-1619.14,0.00020547,2]
[367342102,1750756246889,-460.0,0.00020547,2]
[367342104,1750756246903,-460.0,0.00020547,2]
[367342106,1750756246912,-460.0,0.00020547,2]
[367342108,1750756246922,-460.0,0.00020547,2]
[367342110,1750756246931,-460.0,0.00020547,2]
[367342112,1750756246941,-460.0,0.00020547,2]
[367342114,1750756246950,-460.0,0.00020547,2]
[367342116,1750756246960,-7219.34,0.00020547,2]
[367342118,1750756246969,-460.0,0.00020547,2]
[367342120,1750756246978,-393.90664175,0.00020547,2]
[367342122,1750756246987,-460.0,0.00020547,2]
[367342124,1750756246997,-460.0,0.00020547,2]
[367342126,1750756247006,-1066.49,0.00020547,2]
[367342128,1750756247016,-460.0,0.00020547,2]
[367342130,1750756247026,-610.94,0.00020547,2]
[367342132,1750756247035,-565.53,0.00020547,2]
[367342134,1750756247044,-800.37,0.00020547,2]
[367342136,1750756247054,-460.0,0.00020547,2]
[367342138,1750756247063,-460.0,0.00020547,2]
[367342141,1750756247073,-210.7351847,0.00020547,2]
[367342143,1750756247083,-460.0,0.00020547,2]
[367342145,1750756247092,-460.0,0.00020547,2]
[367342147,1750756247102,-460.0,0.00020547,2]
[367342149,1750756247111,-460.0,0.00020547,2]
[367342151,1750756247121,-460.0,0.00020547,2]
[367342153,1750756247131,-1317.61,0.00020547,2]
[367342155,1750756247140,-520.67095711,0.00020547,2]
[367342157,1750756247150,-460.0,0.00020547,2]
[367342159,1750756247160,-460.0,0.00020547,2]
[367342161,1750756247169,-460.0,0.00020547,2]
[367342163,1750756247179,-901.35,0.00020547,2]
[367342165,1750756247189,-460.0,0.00020547,2]
[367342167,1750756247198,-1046.58,0.00020547,2]
[367342169,1750756247208,-746.79,0.00020547,2]
[367342171,1750756247217,-900.7,0.00020547,2]
[367342174,1750756247226,-160.0,0.00020547,2]
[367342176,1750756247236,-460.0,0.00020547,2]
[367342178,1750756247246,-460.0,0.00020547,2]
[367342180,1750756247255,-1330.85,0.00020547,2]
[367342182,1750756247264,-1466.22,0.00020547,2]
[367342184,1750756247274,-460.0,0.00020547,2]
[367342186,1750756247283,-460.0,0.00020547,2]
[367342188,1750756247292,-460.0,0.00020547,2]
[367342190,1750756247301,-460.0,0.00020547,2]
[367342192,1750756247310,-526.83,0.00020547,2]
[367342194,1750756247319,-460.0,0.00020547,2]
[367342196,1750756247329,-213.66798275,0.0002055,2]
[367342198,1750756247339,-12556.00642039,0.0002055,2]
[367342200,1750756247349,-425.14181427,0.0002055,2]
[367342202,1750756247359,-230.20892031,0.00020559,2]
[367342204,1750756247369,-160.0,0.00020559,2]
[367342206,1750756247382,-836.80226758,0.00020559,2]
[367342208,1750756247393,-846.68469334,0.00020559,2]
[367342210,1750756247402,-160.0,0.00020559,2]
[367342212,1750756247412,-500.0,0.00020573,2]
[367342214,1750756247422,-500.0,0.00020573,2]
[367342216,1750756247436,-500.0,0.00020573,2]
[367342218,1750756247446,-965.0,0.00020599,2]
[367342220,1750756247456,-4725.18,0.000206,2]
[367342222,1750756247466,-8764.1,0.000206,2]
[367342224,1750756247476,-57657.82,0.000206,2]
[367342226,1750756247486,-151.0,0.000207,4]
[367342228,1750756247495,-5000.0,0.00020799,2]
[367342230,1750756247505,-460.0,0.00020821,2]
[367342232,1750756247515,-460.0,0.00020821,2]
[367342234,1750756247525,-460.0,0.00020821,2]
[367342236,1750756247534,-265.46,0.00020821,2]
[367342255,1750756247701,-346.12138794,0.00020821,2]
[367342258,1750756247711,-460.0,0.00020821,2]
[367342260,1750756247721,-460.0,0.00020821,2]
[367342262,1750756247730,-460.0,0.00020821,2]
[367342264,1750756247740,-460.0,0.00020821,2]
[367342266,1750756247749,-460.0,0.00020821,2]
[367342268,1750756247758,-500.0,0.00020821,15]
[367342270,1750756247768,-619.95,0.00020821,2]
[367342272,1750756247777,-460.0,0.00020821,2]
[367342274,1750756247787,-460.0,0.00020821,2]
[367342276,1750756247797,-460.0,0.00020821,2]
[367342278,1750756247806,-460.0,0.00020821,2]
[367342280,1750756247817,-460.0,0.00020821,2]
[367342282,1750756247827,-460.0,0.00020821,2]
[367342284,1750756247836,-1003.9,0.00020821,2]
[367342286,1750756247845,-2376.79,0.00020821,2]
[367342288,1750756247854,-2214.61,0.00020821,2]
[367342290,1750756247864,-460.0,0.00020821,2]
[367342292,1750756247874,-758.26,0.00020821,2]
[367342294,1750756247883,-460.0,0.00020821,2]
[367342296,1750756247893,-603.45,0.00020821,2]
[367342298,1750756247905,-460.0,0.00020821,2]
[367342300,1750756247915,-452.45934072,0.00020821,2]
[367342302,1750756247924,-496.93,0.00020821,2]
[367342304,1750756247933,-217.63,0.00020821,2]
[367342306,1750756247943,-906.27,0.00020821,2]
[367342308,1750756247952,-460.0,0.00020821,2]
[367342310,1750756247962,-460.0,0.00020821,2]
[367342312,1750756247971,-765.91,0.00020821,2]
[367342314,1750756247981,-1619.14,0.00020821,2]
[367342316,1750756247990,-460.0,0.00020821,2]
[367342318,1750756247999,-460.0,0.00020821,2]
[367342320,1750756248008,-460.0,0.00020821,2]
[367342322,1750756248018,-460.0,0.00020821,2]
[367342324,1750756248027,-460.0,0.00020821,2]
[367342326,1750756248036,-460.0,0.00020821,2]
[367342328,1750756248046,-460.0,0.00020821,2]
[367342330,1750756248055,-7219.34,0.00020821,2]
[367342332,1750756248064,-460.0,0.00020821,2]
[367342334,1750756248074,-460.0,0.00020821,2]
[367342336,1750756248084,-212.81537941,0.00020821,2]
[367342338,1750756248094,-1066.49,0.00020821,2]
[367342340,1750756248104,-460.0,0.00020821,2]
[367342342,1750756248113,-610.94,0.00020821,2]
[367342344,1750756248123,-565.53,0.00020821,2]
[367342346,1750756248133,-800.37,0.00020821,2]
[367342348,1750756248142,-460.0,0.00020821,2]
[367342350,1750756248152,-460.0,0.00020821,2]
[367342352,1750756248162,-460.0,0.00020821,2]
[367342354,1750756248172,-460.0,0.00020821,2]
[367342356,1750756248181,-460.0,0.00020821,2]
[367342358,1750756248192,-460.0,0.00020821,2]
[367342360,1750756248201,-460.0,0.00020821,2]
[367342362,1750756248210,-1317.61,0.00020821,2]
[367342364,1750756248220,-460.0,0.00020821,2]
[367342366,1750756248229,-460.0,0.00020821,2]
[367342368,1750756248238,-460.0,0.00020821,2]
[367342370,1750756248248,-460.0,0.00020821,2]
[367342372,1750756248257,-901.35,0.00020821,2]
[367342374,1750756248267,-1046.58,0.00020821,2]
[367342376,1750756248276,-746.79,0.00020821,2]
[367342378,1750756248285,-900.7,0.00020821,2]
[367342380,1750756248295,-460.0,0.00020821,2]
[367342382,1750756248304,-460.0,0.00020821,2]
[367342384,1750756248313,-1330.85,0.00020821,2]
[367342385,1750756248323,-1466.22,0.00020821,2]
[367342388,1750756248333,-460.0,0.00020821,2]
[367342389,1750756248343,-460.0,0.00020821,2]
[367342391,1750756248352,-460.0,0.00020821,2]
[367342393,1750756248361,-460.0,0.00020821,2]
[367342395,1750756248371,-460.0,0.00020821,2]
[367342397,1750756248380,-526.83,0.00020821,2]
[367342399,1750756248390,-300.0,0.00020838,2]
[367342401,1750756248400,-1500.0,0.00020855,2]
[367342403,1750756248409,-324.73341755,0.00020893,2]
[367342405,1750756248419,-420.0,0.00020897,2]
[367342407,1750756248429,-420.0,0.00020899,2]
[367342409,1750756248438,-160.0,0.00021,2]
[367342411,1750756248447,-1680.0,0.00021,2]
[367342413,1750756248458,-224.00444455,0.00021021,2]
[367342415,1750756248468,-515.98530857,0.00021021,2]
[367342417,1750756248478,-1000.0,0.00021021,2]
[367342419,1750756248487,-535.08634255,0.00021021,2]
[367342421,1750756248496,-1001.95348224,0.00021021,2]
[367342423,1750756248506,-1000.0,0.00021021,2]
[367342425,1750756248515,-633.99653126,0.00021054,2]
[367342427,1750756248525,-1000.0,0.00021068,2]
[367342429,1750756248534,-1500.0,0.00021068,2]
[367342431,1750756248544,-1500.0,0.00021068,2]
[367342433,1750756248554,-12556.00642039,0.00021086,3]
[367342435,1750756248563,-846.68469334,0.00021086,3]
[367342437,1750756248574,-509.77352473,0.00021095,2]
[367342439,1750756248583,-576.52,0.00021095,2]
[367342441,1750756248593,-460.0,0.00021095,2]
[367342443,1750756248602,-460.0,0.00021095,2]
[367342445,1750756248613,-460.0,0.00021095,2]
[367342447,1750756248622,-460.0,0.00021095,2]
[367342449,1750756248631,-460.0,0.00021095,2]
[367342451,1750756248641,-525.38,0.00021095,2]
[367342453,1750756248650,-500.0,0.00021095,16]
[367342455,1750756248659,-619.95,0.00021095,2]
[367342456,1750756248669,-460.0,0.00021095,2]
[367342458,1750756248678,-460.0,0.00021095,2]
[367342460,1750756248687,-460.0,0.00021095,2]
[367342462,1750756248698,-460.0,0.00021095,2]
[367342464,1750756248707,-496.15803782,0.00021095,2]
[367342466,1750756248716,-460.0,0.00021095,2]
[367342468,1750756248725,-1003.9,0.00021095,2]
[367342470,1750756248734,-2376.79,0.00021095,2]
[367342472,1750756248744,-2214.61,0.00021095,2]
[367342474,1750756248753,-460.0,0.00021095,2]
[367342476,1750756248763,-758.26,0.00021095,2]
[367342478,1750756248775,-460.0,0.00021095,2]
[367342480,1750756248785,-603.45,0.00021095,2]
[367342482,1750756248794,-460.0,0.00021095,2]
[367342484,1750756248803,-496.93,0.00021095,2]
[367342486,1750756248813,-906.27,0.00021095,2]
[367342488,1750756248822,-460.0,0.00021095,2]
[367342490,1750756248832,-460.0,0.00021095,2]
[367342492,1750756248841,-765.91,0.00021095,2]
[367342493,1750756248850,-1619.14,0.00021095,2]
[367342495,1750756248860,-460.0,0.00021095,2]
[367342497,1750756248870,-460.0,0.00021095,2]
[367342499,1750756248880,-460.0,0.00021095,2]
[367342501,1750756248889,-460.0,0.00021095,2]
[367342503,1750756248902,-460.0,0.00021095,2]
[367342505,1750756248911,-460.0,0.00021095,2]
[367342507,1750756248921,-460.0,0.00021095,2]
[367342509,1750756248930,-7219.34,0.00021095,2]
[367342511,1750756248941,-460.0,0.00021095,2]
[367342513,1750756248950,-460.0,0.00021095,2]
[367342515,1750756248960,-1066.49,0.00021095,2]
[367342517,1750756248971,-311.1680995,0.00021095,2]
[367342519,1750756248980,-610.94,0.00021095,2]
[367342521,1750756248989,-565.53,0.00021095,2]
[367342523,1750756248999,-800.37,0.00021095,2]
[367342525,1750756249009,-460.0,0.00021095,2]
[367342527,1750756249018,-460.0,0.00021095,2]
[367342529,1750756249028,-460.0,0.00021095,2]
[367342530,1750756249037,-460.0,0.00021095,2]
[367342532,1750756249046,-460.0,0.00021095,2]
[367342534,1750756249055,-460.0,0.00021095,2]
[367342536,1750756249066,-460.0,0.00021095,2]
[367342538,1750756249075,-1317.61,0.00021095,2]
[367342540,1750756249084,-460.0,0.00021095,2]
[367342542,1750756249094,-460.0,0.00021095,2]
[367342544,1750756249104,-529.7608125,0.00021095,2]
[367342546,1750756249113,-901.35,0.00021095,2]
[367342548,1750756249123,-1046.58,0.00021095,2]
[367342550,1750756249133,-746.79,0.00021095,2]
[367342552,1750756249142,-460.0,0.00021095,2]
[367342554,1750756249152,-900.7,0.00021095,2]
[367342556,1750756249161,-327.57,0.00021095,2]
[367342558,1750756249171,-460.0,0.00021095,2]
[367342560,1750756249180,-1330.85,0.00021095,2]
[367342562,1750756249189,-1466.22,0.00021095,2]
[367342563,1750756249199,-460.0,0.00021095,2]
[367342565,1750756249208,-460.0,0.00021095,2]
[367342568,1750756249218,-460.0,0.00021095,2]
[367342570,1750756249228,-460.0,0.00021095,2]
[367342571,1750756249237,-202.92,0.00021095,2]
[367342573,1750756249246,-526.83,0.00021095,2]
[367342575,1750756249256,-151.0,0.000211,4]
[367342577,1750756249265,-1000.0,0.00021121,2]
[367342579,1750756249275,-1000.0,0.00021121,2]
[367342581,1750756249286,-1000.0,0.00021121,2]
[367342583,1750756249295,-460.0,0.00021369,2]
[367342585,1750756249306,-460.0,0.00021369,2]
[367342587,1750756249315,-460.0,0.00021369,2]
[367342589,1750756249326,-460.0,0.00021369,2]
[367342591,1750756249335,-460.0,0.00021369,2]
[367342593,1750756249345,-500.0,0.00021369,17]
[367342595,1750756249354,-619.95,0.00021369,2]
[367342597,1750756249364,-460.0,0.00021369,2]
[367342599,1750756249374,-538.41,0.00021369,2]
[367342601,1750756249384,-460.0,0.00021369,2]
[367342603,1750756249393,-460.0,0.00021369,2]
[367342605,1750756249402,-460.0,0.00021369,2]
[367342607,1750756249412,-1003.9,0.00021369,2]
[367342609,1750756249422,-2376.79,0.00021369,2]
[367342611,1750756249432,-2214.61,0.00021369,2]
[367342613,1750756249441,-460.0,0.00021369,2]
[367342615,1750756249450,-758.26,0.00021369,2]
[367342617,1750756249460,-460.0,0.00021369,2]
[367342618,1750756249469,-603.45,0.00021369,2]
[367342620,1750756249479,-460.0,0.00021369,2]
[367342622,1750756249489,-496.93,0.00021369,2]
[367342624,1750756249499,-906.27,0.00021369,2]
[367342626,1750756249508,-562.79,0.00021369,2]
[367342628,1750756249518,-460.0,0.00021369,2]
[367342630,1750756249527,-765.91,0.00021369,2]
[367342632,1750756249537,-1619.14,0.00021369,2]
[367342634,1750756249547,-460.0,0.00021369,2]
[367342636,1750756249557,-305.00127568,0.00021369,2]
[367342638,1750756249567,-460.0,0.00021369,2]
[367342640,1750756249577,-422.59178167,0.00021369,2]
[367342642,1750756249587,-460.0,0.00021369,2]
[367342644,1750756249597,-460.0,0.00021369,2]
[367342646,1750756249606,-378.69517711,0.00021369,2]
[367342648,1750756249615,-7219.34,0.00021369,2]
[367342649,1750756249625,-460.0,0.00021369,2]
[367342651,1750756249635,-460.0,0.00021369,2]
[367342653,1750756249645,-1066.49,0.00021369,2]
[367342655,1750756249654,-610.94,0.00021369,2]
[367342657,1750756249663,-565.53,0.00021369,2]
[367342659,1750756249672,-800.37,0.00021369,2]
[367342661,1750756249682,-460.0,0.00021369,2]
[367342663,1750756249691,-460.0,0.00021369,2]
[367342665,1750756249700,-460.0,0.00021369,2]
[367342667,1750756249710,-460.0,0.00021369,2]
[367342669,1750756249719,-460.0,0.00021369,2]
[367342671,1750756249728,-460.0,0.00021369,2]
[367342673,1750756249738,-460.0,0.00021369,2]
[367342675,1750756249747,-1317.61,0.00021369,2]
[367342677,1750756249756,-276.22,0.00021369,2]
[367342678,1750756249766,-460.0,0.00021369,2]
[367342680,1750756249775,-901.35,0.00021369,2]